bitfinex-derivatives/quotes_ETHF0:USTF0_20250709
["timestamp","ask_amount","ask_price","bid_price","bid_amount"]
[1752026961198,0.76577,2611.1,2611.0,0.6422]
[1752026961697,0.7658,2611.0,2610.9,0.76581]
[1752026961995,0.76583,2610.9,2610.8,3.2078]
[1752026962196,2.05682799,2610.9,2610.8,3.2078]
[1752026962792,0.76589,2610.7,2610.6,3.43706845]
[1752026962996,1.29099799,2610.9,2610.5,0.76594]
[1752026962997,0.76592,2610.6,2610.5,4.20300845]
[1752026963199,1.40002,2610.6,2610.5,4.20706935]
[1752026965098,1.40002,2610.6,2610.5,3.44112935]
[1752026965401,0.76595,2610.5,2610.4,3.8635]
[1752026965595,2.05694799,2610.5,2610.4,3.2078]
[1752026966098,3.39224799,2610.5,2610.4,3.2078]
[1752026966396,2.62629799,2610.5,2610.1,7.79953173]
[1752026966596,0.76604,2610.2,2610.1,4.59173173]
[1752026966896,0.76604,2610.2,2610.1,0.77181636]
[1752026967090,0.6852,2610.2,2610.1,0.77181636]
[1752026968893,1.45124,2610.2,2610.1,0.77181636]
[1752026969100,1.45124,2610.2,2610.1,0.00574636]
[1752026969800,0.6852,2610.2,2610.1,0.77181636]
[1752026969995,1.45124,2610.2,2610.1,0.77181636]
[1752026970197,1.45124,2610.2,2610.1,0.00574636]
[1752026971202,2.77514,2610.2,2610.1,0.00574636]
[1752026972102,43.57514,2610.2,2610.1,0.00574636]
[1752026972696,0.76624,2609.5,2609.4,5.35224537]
[1752026973003,0.76623,2609.6,2609.5,0.76623]
[1752026973398,0.76625,2609.5,2609.4,0.76626]
[1752026974105,0.7662,2609.7,2609.6,0.76621]
[1752026975005,0.7662,2609.7,2609.6,0.7662]
[1752026976006,0.76622,2609.6,2609.5,0.76622]
[1752026976708,0.76621,2609.7,2609.6,0.76621]
[1752026977405,0.76622,2609.6,2609.5,0.76622]
[1752026977604,0.7662,2609.7,2609.6,0.7662]
[1752026978308,4.62738,2609.8,2609.7,0.76618]
[1752026978510,0.76619,2609.7,2609.6,0.76619]
[1752026980613,4.62737,2609.8,2609.7,0.76618]
[1752026980813,0.7662,2609.7,2609.6,0.7662]
[1752026981917,4.62738,2609.8,2609.7,0.76618]
[1752026983017,0.7662,2609.7,2609.6,0.76619]
[1752026985725,0.76623,2609.6,2609.5,0.76623]
[1752026986216,2.05722799,2609.6,2609.5,0.76623]
[1752026986817,0.76623,2609.6,2609.5,0.76623]
[1752026987017,0.7662,2609.7,2609.6,0.76619]
[1752026987219,1.427,2609.7,2609.6,1.45579]
[1752026988022,0.76621,2609.6,2609.5,0.76623]
[1752026988224,0.76621,2609.6,2609.5,1.45583]
[1752026989226,0.76621,2609.6,2609.5,0.76623]
[1752026989428,0.76621,2609.6,2609.5,1.45583]
[1752026990726,1.42701,2609.6,2609.5,0.76623]
[1752026990926,1.42701,2609.6,2609.5,1.45583]
[1752026992425,1.42701,2609.6,2609.5,0.6896]
[1752026992629,2.40291,2609.6,2609.5,0.6896]
[1752026992931,0.7663,2609.3,2609.2,0.6896]
[1752026993130,0.7663,2609.3,2608.8,5.486]
[1752026993131,1.6367,2609.3,2608.8,5.486]
[1752026993330,2.92599799,2609.2,2608.9,0.6695]
[1752026993631,0.76639,2609.1,2609.0,0.76639]
[1752026993831,1.42719,2609.1,2609.0,1.45599]
[1752026994028,1.42719,2609.1,2609.0,1.09662691]
[1752026994232,1.42719,2609.1,2609.0,0.6896]
[1752026995035,0.76639,2609.0,2608.9,1.4067609]
[1752026995333,0.76639,2609.0,2608.8,1.3158]
[1752026995334,0.76642,2608.9,2608.8,1.3158]
[1752026995531,2.40312,2608.9,2608.8,0.6896]
[1752026995737,3.55279,2608.9,2608.4,0.76657]
[1752026995933,1.29099799,2608.6,2608.3,2.02488]
[1752026996237,1.29099799,2608.6,2608.5,0.6896]
[1752026996238,2.71830799,2608.6,2608.5,0.6896]
[1752026996536,3.69420799,2608.6,2608.5,0.6896]
[1752026996736,0.76654,2608.5,2608.4,0.00574636]
[1752026996938,1.42734,2608.5,2608.4,0.00574636]
[1752026997133,2.40324,2608.5,2608.4,0.00574636]
[1752026998237,0.76661,2608.3,2607.9,31.5055]
[1752026998440,3.8686,2608.3,2608.2,1.4562]
[1752027000236,3.8686,2608.3,2608.2,0.76661]
[1752027000637,3.8686,2608.3,2608.2,1.45621]
[1752027001132,3.8686,2608.3,2608.2,0.6896]
[1752027001340,3.8686,2608.3,2608.2,1.45621]
[1752027001640,4.6352,2608.3,2608.2,1.45621]
[1752027001841,3.8686,2608.3,2608.2,1.45621]
[1752027003042,0.6608,2608.3,2608.2,1.45621]
[1752027003343,3.8686,2608.3,2608.2,1.45621]
[1752027003843,3.2078,2608.3,2608.2,2.41861]
[1752027005246,3.2078,2608.3,2608.2,0.95293609]
[1752027005445,3.8686,2608.3,2608.2,0.95293609]
[1752027007146,3.8686,2608.3,2608.1,2.60749799]
[1752027007346,3.8686,2608.3,2608.2,0.76661]
[1752027007543,3.8686,2608.3,2608.2,1.45621]
[1752027007544,3.2078,2608.3,2608.2,1.45621]
[1752027007746,0.00574636,2608.5,2608.4,0.76657]
[1752027008046,0.00574636,2608.5,2608.4,2.05756799]
[1752027008448,0.00574636,2608.5,2608.4,2.69236799]
[1752027010047,0.00574636,2608.5,2608.4,4.05136799]
[1752027011246,0.00574636,2608.5,2608.4,4.74096799]
[1752027015350,0.00574636,2608.5,2608.4,5.40426799]
[1752027016051,0.00574636,2608.5,2608.4,4.74096799]
[1752027019252,0.00574636,2608.5,2608.4,4.02208532]
[1752027019853,0.00574636,2608.5,2608.4,3.98358532]
[1752027021153,0.00574636,2608.5,2608.4,3.48036644]
[1752027025252,0.00574636,2608.5,2608.4,2.7614838]
[1752027026252,0.00574636,2608.5,2608.4,2.70866799]
[1752027026454,0.68244636,2608.5,2608.4,2.70866799]
[1752027026751,0.68244636,2608.5,2608.4,1.41767]
[1752027030256,2.48468636,2608.5,2608.4,0.6511]
[1752027030453,2.35884636,2608.5,2608.4,27.50167]
[1752027030857,3.12538636,2608.5,2608.4,27.50167]
[1752027031053,2.35884636,2608.5,2608.4,27.50167]
[1752027034655,3.12538636,2608.5,2608.4,27.50167]
[1752027034858,3.74674636,2608.5,2608.4,27.50167]
[1752027036866,2.71104636,2608.5,2608.4,27.50167]
[1752027037664,3.74674636,2608.5,2608.4,27.50167]
[1752027039166,3.74674636,2608.5,2608.4,1.41767]
[1752027039366,3.74674636,2608.5,2608.4,27.50067]
[1752027040562,2.71104636,2608.5,2608.4,27.50067]
[1752027043559,3.74674636,2608.5,2608.4,27.50067]
[1752027046269,2.03434636,2608.5,2608.4,26.84957]
[1752027046969,0.64644636,2608.5,2608.4,26.84957]
[1752027048470,1.31174636,2608.5,2608.4,26.84957]
[1752027048768,1.31174636,2608.5,2608.4,27.53317]
[1752027049970,2.32684636,2608.5,2608.4,27.53317]
[1752027051470,1.31174636,2608.5,2608.4,27.53317]
[1752027052768,2.32684636,2608.5,2608.4,27.53017]
[1752027055072,1.31174636,2608.5,2608.4,27.53017]
[1752027056473,1.31174636,2608.5,2608.4,28.82116799]
[1752027056976,0.00574636,2608.5,2608.4,28.82116799]
[1752027058077,0.67104636,2608.5,2608.4,28.82116799]
[1752027066076,0.00574636,2608.5,2608.4,28.82116799]
[1752027066285,0.6918,2608.8,2608.7,0.76648]
[1752027066583,2.83408962,2608.8,2608.7,26.84248]
[1752027066785,3.84918962,2608.8,2608.7,27.52608]
[1752027073681,4.61563962,2608.8,2608.7,27.52608]
[1752027076186,3.84918962,2608.8,2608.7,27.52608]
[1752027077081,4.61563962,2608.8,2608.7,27.52608]
[1752027077389,3.84918962,2608.8,2608.7,27.52608]
[1752027077684,4.61563962,2608.8,2608.7,27.52608]
[1752027077984,3.84918962,2608.8,2608.7,27.52608]
[1752027081788,4.61563962,2608.8,2608.7,27.52608]
[1752027081984,3.84918962,2608.8,2608.7,27.52608]
[1752027082887,4.61563962,2608.8,2608.7,27.52608]
[1752027083788,3.84918962,2608.8,2608.7,27.52608]
[1752027084690,2.83408962,2608.8,2608.7,27.52608]
[1752027085689,4.61133962,2608.8,2608.7,27.52608]
[1752027086292,3.84488962,2608.8,2608.7,27.52608]
[1752027086490,4.61133962,2608.8,2608.7,27.52608]
[1752027089494,3.84488962,2608.8,2608.7,27.52608]
[1752027090989,2.83408962,2608.8,2608.7,27.52608]
[1752027091294,1.47698962,2608.8,2608.7,27.52608]
[1752027093799,1.47698962,2608.8,2608.7,30.73388]
[1752027093999,3.2078,2609.1,2608.7,32.67488]
[1752027094304,0.6886,2609.3,2609.2,0.76633]
[1752027094493,3.887,2609.4,2609.3,0.7663]
[1752027095502,3.887,2609.4,2609.3,1.3978]
[1752027099302,4.8978,2609.4,2609.3,1.3978]
[1752027099502,5.66407,2609.4,2609.3,1.3978]
[1752027100203,4.8978,2609.4,2609.3,1.3978]
[1752027100606,3.2078,2609.4,2609.3,0.7663]
[1752027100803,3.2078,2609.4,2609.3,1.3978]
[1752027100995,41.8108,2609.7,2609.3,5.1319649]
[1752027100996,4.2186,2609.7,2609.3,5.1319649]
[1752027101202,1.6986,2609.7,2609.6,0.76621]
[1752027101397,2.3778,2609.7,2609.6,26.82821]
[1752027103607,3.14398,2609.7,2609.6,26.82821]
[1752027103908,2.3778,2609.7,2609.6,26.82821]
[1752027104110,0.6878,2609.7,2609.6,26.82821]
[1752027104410,2.3778,2609.7,2609.6,27.45971]
[1752027105809,1.367,2609.7,2609.6,27.45971]
[1752027106304,48.4246549,2610.1,2610.0,0.7661]
[1752027106608,0.7661,2610.0,2609.9,26.82411]
[1752027106800,4.24237078,2610.0,2609.9,26.82411]
[1752027106999,5.25317078,2610.0,2609.9,26.82411]
[1752027107606,5.92207078,2610.0,2609.9,26.82411]
[1752027108008,9.12987078,2610.0,2609.9,26.82411]
[1752027108208,8.36377078,2610.0,2609.9,26.82411]
[1752027108407,9.12987078,2610.0,2609.9,26.82411]
[1752027110707,6.02857078,2610.0,2609.9,27.47231]
[1752027110913,5.70359382,2611.0,2610.2,0.76604]
[1752027110914,3.2078,2610.3,2610.2,0.76604]
[1752027111215,0.6923,2610.3,2610.2,26.82204]
[1752027111813,0.6923,2610.3,2610.2,27.47024]
[1752027114613,1.6742,2610.3,2610.2,27.47024]
[1752027121318,0.6923,2610.3,2610.2,27.47024]
[1752027122715,3.2078,2610.8,2610.7,0.76589]
[1752027123014,6.31550827,2610.8,2610.7,26.81289]
[1752027123220,7.62570827,2610.8,2610.7,26.81289]
[1752027124518,5.18376827,2610.8,2610.7,26.81289]
[1752027124714,4.41790827,2610.8,2610.7,26.81289]
[1752027125321,5.18376827,2610.8,2610.7,26.81289]
[1752027125517,4.41790827,2610.8,2610.7,26.81289]
[1752027125916,4.41790827,2610.8,2610.7,27.46109]
[1752027126123,2.9844,2610.8,2610.7,27.46109]
[1752027126321,2.9844,2610.8,2610.7,26.81289]
[1752027126522,2.9844,2610.8,2610.7,27.46109]
[1752027128430,1.6742,2610.8,2610.7,27.46109]
[1752027129522,3.0299,2610.8,2610.7,27.46109]
[1752027129731,3.79576,2610.8,2610.7,27.46109]
[1752027130027,3.0299,2610.8,2610.7,27.46109]
[1752027130520,3.79576,2610.8,2610.7,27.46109]
[1752027131726,3.79576,2610.8,2610.7,26.6952]
[1752027131928,3.0299,2610.8,2610.7,27.46109]
[1752027133427,0.6923,2610.8,2610.7,28.7537549]
[1752027133628,0.6923,2610.8,2610.7,2.7067549]
[1752027133829,0.6923,2610.8,2610.7,28.7487549]
[1752027135326,1.6742,2610.8,2610.7,28.7487549]
[1752027135528,1.6742,2610.8,2610.7,27.45509]
[1752027136429,0.6923,2610.8,2610.7,27.45509]
[1752027138321,1.7007,2610.8,2610.7,27.45409]
[1752027138831,1.7007,2610.8,2610.7,0.76589]
[1752027139031,3.08,2610.8,2610.7,26.80589]
[1752027140734,3.84586,2610.8,2610.7,26.80589]
[1752027140933,3.84586,2610.8,2610.7,0.76589]
[1752027141230,3.84586,2610.8,2610.7,26.80589]
[1752027141434,5.27034454,2610.8,2610.7,26.80589]
[1752027141636,5.27034454,2610.8,2610.7,26.04]
[1752027142035,5.27034454,2610.8,2610.7,26.80589]
[1752027143131,5.27034454,2610.8,2610.6,3.2078]
[1752027143132,0.76589,2610.7,2610.6,3.2078]
[1752027143334,3.82269,2610.7,2610.6,30.01272]
[1752027144126,3.82269,2610.7,2610.3,3.2078]
[1752027144127,0.76601,2610.4,2610.3,3.2078]
[1752027144328,0.76601,2610.3,2610.2,0.76602]
[1752027144524,0.76601,2610.3,2610.1,3.43202005]
[1752027144525,2.3342,2610.3,2610.1,3.43202005]
[1752027144726,5.7172749,2610.3,2610.2,26.038]
[1752027144929,4.3928749,2610.3,2610.2,26.038]
[1752027145129,0.76607,2610.1,2610.0,3.2078]
[1752027145326,2.45477,2610.1,2610.0,29.2468]
[1752027145630,2.45477,2610.1,2610.0,26.039]
[1752027147940,1.6887,2610.1,2609.8,3.97395]
[1752027148136,0.76613,2609.9,2609.8,3.2078]
[1752027148439,3.7474949,2609.9,2609.8,29.2478]
[1752027148632,4.4195949,2609.9,2609.8,29.2478]
[1752027150433,4.4195949,2609.9,2609.8,3.2078]
[1752027151840,2.3608,2609.9,2609.8,4.60186]
[1752027153244,3.12693,2609.9,2609.8,3.8357]
[1752027153743,3.12693,2609.9,2609.8,4.60186]
[1752027154144,3.12693,2609.9,2609.8,3.97396]
[1752027155643,2.3608,2609.9,2609.8,3.97396]
[1752027156245,2.3608,2609.9,2609.8,4.60186]
[1752027156444,2.3608,2609.9,2609.8,3.97396]
[1752027156639,1.3524,2609.9,2609.8,3.97396]
[1752027157039,40.8,2610.1,2610.0,0.7661]
[1752027157238,41.4803,2610.1,2610.0,0.7661]
[1752027157448,0.6803,2610.1,2610.0,0.7661]
[1752027157848,2.44263,2610.3,2610.2,0.76604]
[1752027158051,43.92293,2610.3,2610.2,0.76604]
[1752027158351,43.92293,2610.3,2610.1,26.80905]
[1752027158352,0.76604,2610.2,2610.1,26.80905]
[1752027159456,0.76604,2610.2,2610.1,26.043]
[1752027160456,43.1569,2610.3,2610.1,26.80907]
[1752027160654,2.45474,2610.2,2610.1,26.6709]
[1752027161353,2.45474,2610.2,2610.1,26.043]
[1752027161553,2.45474,2610.2,2610.1,26.6709]
[1752027161755,2.45474,2610.2,2610.1,27.43697]
[1752027162655,1.44634,2610.2,2610.1,27.43697]
[1752027163456,1.44634,2610.2,2610.1,26.6709]
[1752027165363,1.44634,2610.2,2610.1,27.43697]
[1752027166559,1.44634,2610.2,2610.1,26.6709]
[1752027167361,2.87365342,2610.2,2610.1,26.6709]
[1752027167760,3.83365342,2610.2,2610.1,26.6709]
[1752027168861,1.42731342,2610.2,2610.1,30.64477]
[1752027169063,1.43554,2610.2,2610.1,29.8787]
[1752027169356,3.82331995,2610.2,2610.1,29.8787]
[1752027172161,3.82331995,2610.2,2610.1,26.6709]
[1752027173569,3.82331995,2610.2,2610.1,26.6689]
[1752027174469,5.11598485,2610.2,2610.1,26.041]
[1752027175763,0.76613,2609.9,2609.8,6.63982005]
[1752027175968,2.39563,2609.9,2609.8,33.30832005]
[1752027176365,3.03583,2609.9,2609.8,29.8763]
[1752027176768,3.03583,2609.9,2609.8,26.6685]
[1752027179568,4.46005493,2609.9,2609.8,26.6685]
[1752027179968,4.46005493,2609.9,2609.8,0.6275]
[1752027180171,4.46005493,2609.9,2609.8,26.6685]
[1752027181172,4.46005493,2609.9,2609.8,0.6275]
[1752027181373,4.46005493,2609.9,2609.8,26.6685]
[1752027182975,5.72455493,2609.9,2609.8,26.041]
[1752027183370,0.76618,2609.7,2609.6,3.43202005]
[1752027183570,0.76621,2609.6,2609.5,6.63982005]
[1752027183770,2.11121,2609.6,2609.5,7.26732005]
[1752027183975,2.11121,2609.6,2609.5,32.68182005]
[1752027184175,3.07121,2609.6,2609.5,32.68182005]
[1752027184368,3.07121,2609.6,2609.5,29.8773]
[1752027184772,2.305,2609.6,2609.5,29.8773]
[1752027184974,1.345,2609.6,2609.5,29.8773]
[1752027185174,1.345,2609.6,2609.5,30.64354]
[1752027186873,2.11121,2609.6,2609.5,30.64354]
[1752027189476,1.345,2609.6,2609.5,30.64354]
[1752027189776,2.11121,2609.6,2609.5,30.64354]
[1752027190479,1.345,2609.6,2609.5,30.64354]
[1752027190673,2.11121,2609.6,2609.5,30.64354]
[1752027191272,2.11121,2609.6,2609.5,29.8773]
[1752027191576,1.345,2609.6,2609.5,30.64354]
[1752027192581,2.11121,2609.6,2609.5,30.64354]
[1752027193079,1.345,2609.6,2609.5,30.64354]
[1752027194976,0.6695,2609.6,2609.5,30.64354]
[1752027195182,1.72615,2609.9,2609.7,0.76616]
[1752027195379,2.09391331,2609.8,2609.7,26.80816]
[1752027195579,2.09391331,2609.8,2609.7,27.43566]
[1752027195882,2.86007331,2609.8,2609.7,27.43566]
[1752027196182,3.82007331,2609.8,2609.7,27.43566]
[1752027197785,3.05391331,2609.8,2609.7,27.43566]
[1752027198080,3.82007331,2609.8,2609.7,27.43566]
[1752027199185,3.82023433,2609.8,2609.7,27.43566]
[1752027200486,3.82023433,2609.8,2609.7,26.6695]
[1752027200986,3.82023433,2609.8,2609.7,27.43568]
[1752027201287,3.82023433,2609.8,2609.7,26.6695]
[1752027201689,3.82023433,2609.8,2609.7,27.43568]
[1752027202286,3.82023433,2609.8,2609.7,26.6695]
[1752027204691,5.11289923,2609.8,2609.7,26.6695]
[1752027205189,5.11289923,2609.8,2609.7,27.43568]
[1752027205489,5.11289923,2609.8,2609.7,26.6695]
[1752027206086,3.82023433,2609.8,2609.7,26.6685]
[1752027206286,2.39566,2609.8,2609.7,26.6685]
[1752027206482,3.80762332,2609.8,2609.7,26.6685]
[1752027211384,2.84762332,2609.8,2609.7,26.6685]
[1752027212484,3.85732332,2609.8,2609.7,26.6685]
[1752027213189,2.84762332,2609.8,2609.7,27.43468]
[1752027213386,2.08146332,2609.8,2609.7,27.43468]
[1752027213790,2.84762332,2609.8,2609.7,26.6685]
[1752027214989,2.08146332,2609.8,2609.7,27.43468]
[1752027215190,2.84762332,2609.8,2609.7,27.43468]
[1752027215493,2.84762332,2609.8,2609.7,26.6685]
[1752027215686,3.85732332,2609.8,2609.7,26.6685]
[1752027218382,3.85732332,2609.8,2609.7,27.43468]
[1752027218886,1.41196332,2609.8,2609.7,28.46857427]
[1752027219098,3.42215629,2610.2,2609.7,33.36909427]
[1752027219287,0.76608,2610.1,2610.0,1.03389427]
[1752027219487,1.42058,2610.1,2610.0,27.07289427]
[1752027219692,0.6545,2610.1,2610.0,28.52159427]
[1752027220490,1.42057,2610.1,2610.0,28.52159427]
[1752027220989,1.42057,2610.1,2610.0,27.75549427]
[1752027222088,1.42057,2610.1,2610.0,28.52159427]
[1752027222294,0.6545,2610.1,2610.0,28.52159427]
[1752027222792,0.6545,2610.1,2610.0,27.4877]
[1752027223286,1.6463,2610.3,2610.1,0.76606]
[1752027223287,2.41233,2610.3,2610.1,0.76606]
[1752027223491,0.6545,2610.2,2610.1,0.76606]
[1752027223884,0.6545,2610.2,2610.1,1.44866]
[1752027224087,0.6545,2610.2,2610.1,0.76606]
[1752027224494,0.6545,2610.2,2610.1,1.44866]
[1752027224693,1.40263,2610.3,2610.2,0.76604]
[1752027224992,2.05712,2610.3,2610.2,26.7196]
[1752027225188,2.05712,2610.3,2610.2,26.037]
[1752027225590,2.05712,2610.3,2610.2,26.7196]
[1752027225790,2.05712,2610.3,2610.2,26.7307]
[1752027227496,0.7661,2610.0,2609.9,4.5222]
[1752027227691,0.6859,2610.0,2609.9,32.01803]
[1752027227891,0.6859,2610.0,2609.9,30.00993]
[1752027228091,2.4619,2610.0,2609.9,29.9375]
[1752027228296,3.1345,2610.0,2609.9,29.9375]
[1752027229187,2.1246,2610.0,2609.9,29.9375]
[1752027229396,1.3585,2610.0,2609.9,30.70363]
[1752027229997,2.1246,2610.0,2609.9,30.70363]
[1752027231497,2.1246,2610.0,2609.9,29.9375]
[1752027232398,2.1246,2610.0,2609.9,26.7297]
[1752027232698,2.1246,2610.0,2609.9,30.70363]
[1752027233293,2.1246,2610.0,2609.9,29.9375]
[1752027234791,2.1246,2610.0,2609.9,3.9015]
[1752027234998,3.1345,2610.0,2609.9,29.9345]
[1752027236500,3.1345,2610.0,2609.9,3.9015]
[1752027236702,3.1345,2610.0,2609.9,29.9345]
[1752027239208,2.3684,2610.0,2609.9,29.9345]
[1752027239408,1.3585,2610.0,2609.9,30.70063]
[1752027240809,0.76603,2610.3,2610.1,0.76604]
[1752027241109,1.45194,2610.2,2610.1,0.6937]
[1752027241412,0.76607,2610.1,2610.0,0.76608]
[1752027241710,0.6859,2610.1,2610.0,1.45978]
[1752027241908,1.45197,2610.1,2610.0,1.45978]
[1752027242111,0.6859,2610.1,2610.0,1.45978]
[1752027243011,1.45197,2610.1,2610.0,1.45978]
[1752027243208,1.45197,2610.1,2610.0,0.6937]
[1752027243509,1.45197,2610.1,2610.0,1.4598]
[1752027244102,1.45197,2610.1,2610.0,0.6937]
[1752027244306,0.6859,2610.1,2610.0,1.4598]
[1752027247415,2.07255122,2610.1,2610.0,1.4598]
[1752027247914,0.6859,2610.1,2610.0,1.4598]
[1752027248114,2.07255033,2610.1,2610.0,1.4598]
[1752027249105,2.07255033,2610.1,2610.0,1.98637789]
[1752027249307,2.83862033,2610.1,2610.0,1.22027789]
[1752027249512,5.14046609,2610.1,2610.0,0.52657789]
[1752027249719,6.41256609,2610.1,2610.0,0.52657789]
[1752027250117,0.14338074,2610.0,2609.6,3.2078]
[1752027250413,5.02377518,2610.1,2610.0,0.59877011]
[1752027250717,2.90651582,2610.1,2609.9,26.03]
[1752027251014,4.08297061,2610.1,2610.0,0.598784]
[1752027251217,0.76616,2609.8,2609.7,26.029]
[1752027251618,2.94682737,2609.8,2609.7,26.029]
[1752027252418,2.94682737,2609.8,2609.7,26.7227]
[1752027252814,2.18066737,2609.8,2609.3,4.49974576]
[1752027253019,0.76624,2609.6,2609.4,27.78585]
[1752027253215,1.45214,2609.6,2609.4,27.78585]
[1752027253417,0.633,2609.5,2609.4,27.78585]
[1752027253718,0.633,2609.5,2609.4,28.47955]
[1752027254816,42.09194576,2609.9,2609.6,0.7662]
[1752027255017,0.76619,2609.7,2609.6,2.4495]
[1752027255418,0.76619,2609.7,2609.6,1.6833]
[1752027255419,1.45209,2609.7,2609.6,1.6833]
[1752027255616,1.41049,2609.7,2609.6,1.6833]
[1752027255824,1.41049,2609.7,2609.6,0.6937]
[1752027256118,0.6443,2609.7,2609.6,0.6509]
[1752027256318,0.6443,2609.7,2609.6,0.76621]
[1752027256524,0.76621,2609.6,2609.5,0.76622]
[1752027256718,1.41051,2609.6,2609.5,1.41712]
[1752027257022,0.7662,2609.7,2609.5,1.41712]
[1752027257223,0.7662,2609.7,2609.5,0.6509]
[1752027257822,0.633,2609.8,2609.5,0.6509]
[1752027257823,0.633,2609.8,2609.7,0.76619]
[1752027258019,2.04346,2609.8,2609.7,0.76619]
[1752027258220,1.0178,2610.1,2610.0,0.7661]
[1752027258429,1.0178,2610.1,2610.0,2.05804576]
[1752027258624,2.42817,2610.1,2610.0,0.7661]
[1752027259520,1.6621,2610.1,2610.0,0.7661]
[1752027260022,2.05455864,2610.1,2610.0,0.7661]
[1752027260525,1.28848864,2610.1,2610.0,0.7661]
[1752027261520,0.667,2610.2,2610.1,0.76607]
[1752027261725,2.07734,2610.2,2610.1,0.76607]
[1752027262121,2.07734,2610.2,2610.0,0.03748577]
[1752027262322,1.57919292,2610.2,2610.1,0.76607]
[1752027262626,1.57919292,2610.2,2610.1,1.36480432]
[1752027262827,3.06606475,2610.2,2610.1,2.01570432]
[1752027263026,3.06606475,2610.2,2610.1,1.36480432]
[1752027263524,3.06606475,2610.2,2610.1,2.01570432]
[1752027264627,2.30002475,2610.2,2610.1,2.01570432]
[1752027265129,2.81699939,2610.2,2610.1,2.01570432]
[1752027265427,2.81699939,2610.2,2610.1,1.24963432]
[1752027265928,3.83479939,2610.2,2610.1,1.24963432]
[1752027266127,3.83479939,2610.2,2610.1,0.3299829]
[1752027268129,3.68922756,2610.2,2610.1,0.3299829]
[1752027268725,2.34792756,2610.2,2610.1,0.3299829]
[1752027270029,1.33012756,2610.2,2610.1,0.3299829]
[1752027271730,1.33012756,2610.2,2610.1,1.0960529]
[1752027272831,0.56408756,2610.2,2610.1,1.0960529]
[1752027277833,0.00574636,2610.3,2610.2,0.76604]
[1752027278029,1.41605636,2610.3,2610.2,0.76604]
[1752027278229,1.41605636,2610.3,2610.2,1.41694]
[1752027278436,2.89457372,2610.3,2610.2,0.76604]
[1752027278630,2.89457372,2610.3,2610.2,1.41694]
[1752027279134,3.91237372,2610.3,2610.2,0.6509]
[1752027281736,5.06140372,2610.3,2609.9,3.2078]
[1752027281934,1.29194576,2610.0,2609.8,0.76616]
[1752027282127,1.6621,2609.9,2609.8,1.41706]
[1752027282433,2.42823,2609.9,2609.8,1.41706]
[1752027282633,2.42823,2609.9,2609.8,0.6509]
[1752027282930,0.76616,2609.8,2609.7,26.024]
[1752027283134,0.76621,2609.6,2609.4,1.29194576]
[1752027283332,0.6443,2609.6,2609.5,26.78922]
[1752027284036,0.6443,2609.6,2609.5,27.44012]
[1752027284231,0.6443,2609.6,2609.5,26.78922]
[1752027284834,0.6443,2609.6,2609.5,27.44012]
[1752027286038,0.6443,2609.6,2609.5,1.41712]
[1752027286237,0.6443,2609.6,2609.5,27.44112]
[1752027286438,1.41051,2609.6,2609.5,27.44112]
[1752027286639,0.6443,2609.6,2609.5,27.44112]
[1752027289538,1.2885,2609.9,2609.8,0.76616]
[1752027289841,4.45785669,2609.9,2609.8,0.76616]
[1752027290043,4.45785669,2609.9,2609.7,26.79016]
[1752027290343,1.77216,2609.8,2609.7,26.024]
[1752027290541,3.76866,2609.8,2609.7,26.024]
[1752027291042,3.76866,2609.8,2609.7,26.6524]
[1752027291741,3.76866,2609.8,2609.7,27.41858]
[1752027293143,3.76866,2609.8,2609.7,26.6524]
[1752027293840,3.76866,2609.8,2609.7,27.41859]
[1752027294143,3.76866,2609.8,2609.7,0.6284]
[1752027294343,3.76866,2609.8,2609.7,26.6524]
[1752027294644,3.76866,2609.8,2609.7,27.41859]
[1752027295041,3.76866,2609.8,2609.7,26.6524]
[1752027295243,0.76618,2609.7,2609.6,3.44101654]
[1752027295544,0.76621,2609.6,2609.5,29.46501654]
[1752027296141,1.41961,2609.6,2609.5,29.46501654]
[1752027296339,0.76624,2609.5,2609.4,3.44101654]
[1752027296544,0.76627,2609.4,2609.3,3.44101654]
[1752027296746,5.26601576,2609.4,2609.3,3.44101654]
[1752027296937,6.53721576,2609.4,2609.3,3.44101654]
[1752027299048,8.22731576,2609.4,2609.3,3.44101654]
[1752027299445,0.7663,2609.3,2609.2,29.46701654]
[1752027299646,2.153,2609.3,2609.2,29.46701654]
[1752027299947,2.153,2609.3,2609.2,26.026]
[1752027300750,3.8431,2609.3,2609.2,26.026]
[1752027301553,3.8431,2609.3,2609.2,26.6544]
[1752027301751,0.76633,2609.2,2609.1,0.00574636]
[1752027301950,3.10513,2609.2,2609.1,26.66114636]
[1752027302148,3.10513,2609.2,2609.1,26.03274636]
[1752027302446,2.09913,2609.2,2609.1,26.66114636]
[1752027303950,3.10513,2609.2,2609.1,26.66114636]
[1752027304653,1.3328,2609.2,2609.1,27.42750636]
[1752027307749,0.7663,2609.3,2609.2,0.76633]
[1752027307950,2.0995,2609.3,2609.2,0.76633]
[1752027308254,2.0995,2609.3,2609.2,1.39473]
[1752027308454,3.1055,2609.3,2609.2,1.39473]
[1752027309054,2.3392,2609.3,2609.2,1.39473]
[1752027310045,3.1055,2609.3,2609.2,1.39473]
[1752027310956,3.1055,2609.3,2609.2,1.98680286]
[1752027311356,3.1055,2609.3,2609.2,1.22047286]
[1752027311558,4.5507692,2609.3,2609.2,1.22047286]
[1752027311753,4.5507692,2609.3,2609.2,0.59207286]
[1752027311954,5.7002692,2609.3,2608.5,4.49974576]
[1752027312159,5.7002692,2609.3,2608.6,26.6658]
[1752027312160,1.29194576,2609.0,2608.6,26.6658]
[1752027312355,0.6841,2608.7,2608.6,26.79448]
[1752027312554,0.6841,2608.7,2608.6,27.42288]
[1752027312758,1.45058,2608.7,2608.6,27.42288]
[1752027313058,2.45658,2608.7,2608.6,27.42288]